bitfinex-derivatives/quotes_BNBF0:USTF0_20250211
["timestamp","ask_amount","ask_price","bid_price","bid_amount"]
[1739317129597,3.57699077,645.3,644.27,0.31042885]
[1739317129799,3.57699077,645.29,644.27,0.31042885]
[1739317130001,3.57699077,645.28,644.27,0.31042885]
[1739317130196,4.58303564,645.27,644.27,0.31042885]
[1739317130398,3.57699077,645.26,644.27,0.31042885]
[1739317130601,3.57699077,645.25,644.27,0.31042885]
[1739317130826,3.57577738,645.24,644.27,0.31042885]
[1739317131101,3.57577738,645.23,644.27,0.31042885]
[1739317131301,3.57577738,645.22,644.27,0.31042885]
[1739317131499,4.58182225,645.21,644.27,0.31042885]
[1739317131702,3.57577738,645.2,644.27,0.31042885]
[1739317131910,4.58182225,645.19,644.27,0.31042885]
[1739317132100,1.37529899,645.18,644.27,0.31042885]
[1739317132304,1.37529899,645.17,644.27,0.31042885]
[1739317132601,1.37529899,645.16,644.27,0.31042885]
[1739317132801,2.38134386,645.15,644.27,0.31042885]
[1739317132998,1.37476015,645.14,644.27,0.31042885]
[1739317133202,1.37476015,645.13,644.27,0.31042885]
[1739317133502,2.38080502,645.12,644.27,0.31042885]
[1739317133705,1.00604487,645.12,644.27,0.31042885]
[1739317133906,1.00604487,645.11,644.27,0.31042885]
[1739317134300,1.00604487,645.1,644.27,0.31042885]
[1739317134806,1.00604487,645.09,644.27,0.31042885]
[1739317135503,1.00604487,645.08,644.27,0.31042885]
[1739317136104,0.92401969,645.59,644.27,0.31042885]
[1739317136307,3.5710114,645.58,644.27,0.31042885]
[1739317136502,0.92401969,645.54,644.27,0.31042885]
[1739317136699,0.92401969,645.52,644.27,0.31042885]
[1739317136902,4.85294386,645.51,644.27,0.31042885]
[1739317137104,4.85294386,645.5,644.27,0.31042885]
[1739317137304,4.85294386,645.49,644.27,0.31042885]
[1739317137503,4.85294386,645.48,644.27,0.31042885]
[1739317137700,3.5710114,645.47,644.27,0.31042885]
[1739317137905,4.85257287,645.46,644.27,0.31042885]
[1739317138102,4.85257287,645.45,644.27,0.31042885]
[1739317138407,3.5710114,645.44,644.27,0.31042885]
[1739317138605,4.57532572,645.43,644.27,0.31042885]
[1739317138805,3.5710114,645.42,644.27,0.31042885]
[1739317139004,3.5710114,645.41,644.27,0.31042885]
[1739317139203,3.568998,645.4,644.27,0.31042885]
[1739317139399,3.568998,645.39,644.27,0.31042885]
[1739317139601,3.568998,645.38,644.27,0.31042885]
[1739317139801,4.84987475,645.37,644.27,0.31042885]
[1739317140107,5.85418907,645.36,644.27,0.31042885]
[1739317140305,4.84987475,645.35,644.27,0.31042885]
[1739317140507,4.84987475,645.34,644.27,0.31042885]
[1739317140708,4.84987475,645.33,644.27,0.31042885]
[1739317140902,4.84987475,645.32,644.27,0.31042885]
[1739317141105,1.37269154,645.31,644.27,0.31042885]
[1739317141306,1.37269154,645.3,644.27,0.31042885]
[1739317141502,1.37226204,645.29,644.27,0.31042885]
[1739317141708,1.37226204,645.28,644.27,0.31042885]
[1739317141905,2.37657636,645.27,644.27,0.31042885]
[1739317142110,1.37226204,645.26,644.27,0.31042885]
[1739317142304,1.00431432,645.27,644.27,0.31042885]
[1739317142548,2.37610232,645.26,644.27,0.31042885]
[1739317142714,1.00431432,645.26,644.27,0.31042885]
[1739317143206,1.00431432,645.25,644.27,0.31042885]
[1739317143610,1.00431432,645.24,644.27,0.31042885]
[1739317144106,1.00431432,645.23,644.27,0.31042885]
[1739317144808,0.92166236,645.64,644.27,0.31042885]
[1739317145013,3.56472265,645.63,644.27,0.31042885]
[1739317145213,0.92166236,645.59,644.27,0.31042885]
[1739317145512,0.92166236,645.55,644.27,0.31042885]
[1739317145713,0.92166236,645.48,644.27,0.31042885]
[1739317145909,0.92166236,645.46,644.27,0.31042885]
[1739317146114,0.92166236,645.41,644.27,0.31042885]
[1739317146315,4.84420328,645.4,644.27,0.31042885]
[1739317146616,4.84420328,645.39,644.27,0.31042885]
[1739317146914,4.84420328,645.38,644.27,0.31042885]
[1739317147114,4.84420328,645.37,644.27,0.31042885]
[1739317147315,5.84657906,645.36,644.27,0.31042885]
[1739317147614,4.84420328,645.35,644.27,0.31042885]
[1739317147830,5.84657906,645.34,644.27,0.31042885]
[1739317148014,4.84420328,645.33,644.27,0.31042885]
[1739317148310,4.84420328,645.32,644.27,0.31042885]
[1739317148508,4.84420328,645.31,644.27,0.31042885]
[1739317148710,2.37342295,645.3,644.27,0.31042885]
[1739317148914,1.37104717,645.29,644.27,0.31042885]
[1739317149113,1.37104717,645.28,644.27,0.31042885]
[1739317149313,1.37104717,645.27,644.27,0.31042885]
[1739317149615,1.3705987,645.26,644.27,0.31042885]
[1739317149816,1.3705987,645.25,644.27,0.31042885]
[1739317150017,2.37297448,645.24,644.27,0.31042885]
[1739317150220,1.3705987,645.23,644.27,0.31042885]
[1739317150518,1.3705987,645.22,644.27,0.31042885]
[1739317150714,1.3705987,645.21,644.27,0.31042885]
[1739317150918,1.3705987,645.2,644.27,0.31042885]
[1739317151114,1.37048172,645.19,644.27,0.31042885]
[1739317151319,1.37048172,645.18,644.27,0.31042885]
[1739317151519,1.37048172,645.17,644.27,0.31042885]
[1739317151719,1.37048172,645.16,644.27,0.31042885]
[1739317151919,1.00237578,645.19,644.27,0.31042885]
[1739317152221,1.00237578,645.15,644.27,0.31042885]
[1739317152715,1.00237578,645.14,644.27,0.31042885]
[1739317153519,1.00237578,645.13,644.27,0.31042885]
[1739317153822,1.00237578,645.12,644.27,0.31042885]
[1739317154222,1.00237578,645.11,644.27,0.31042885]
[1739317154718,1.00237578,645.1,644.27,0.31042885]
[1739317155123,0.92134029,645.67,644.27,0.31042885]
[1739317155317,4.84118375,645.66,644.27,0.31042885]
[1739317155517,4.84116919,645.65,644.27,0.31042885]
[1739317155722,4.84116919,645.64,644.27,0.31042885]
[1739317155921,4.84116919,645.63,644.27,0.31042885]
[1739317156124,4.84116919,645.62,644.27,0.31042885]
[1739317156324,4.84116919,645.61,644.27,0.31042885]
[1739317156524,4.84116919,645.6,644.27,0.31042885]
[1739317156824,4.84116919,645.59,644.27,0.31042885]
[1739317157023,4.84116919,645.58,644.27,0.31042885]
[1739317157224,4.84116919,645.57,644.27,0.31042885]
[1739317157418,4.84116919,645.56,644.27,0.31042885]
[1739317157621,0.92108972,645.32,644.27,0.31042885]
[1739317157826,0.92108972,645.3,644.27,0.31042885]
[1739317158020,1.27881753,645.29,644.27,0.31042885]
[1739317158327,4.84147463,645.28,644.27,0.31042885]
[1739317158531,4.84147463,645.27,644.27,0.31042885]
[1739317158720,4.84147463,645.26,644.27,0.31042885]
[1739317158925,4.84147463,645.25,644.27,0.31042885]
[1739317159227,4.84147463,645.24,644.27,0.31042885]
[1739317159431,4.84147463,645.23,644.27,0.31042885]
[1739317159724,4.84179041,645.22,644.27,0.31042885]
[1739317159925,4.84179041,645.21,644.27,0.31042885]
[1739317160126,5.84368618,645.2,644.27,0.31042885]
[1739317160327,4.84179041,645.19,644.27,0.31042885]
[1739317160527,4.84179041,645.18,644.31,1.15564507]
[1739317160741,4.84179041,645.17,644.33,0.31039995]
[1739317160927,4.84179041,645.16,644.33,0.31039995]
[1739317161127,4.84179041,645.15,644.33,0.31039995]
[1739317161330,4.84257622,645.14,644.33,0.31039995]
[1739317161630,4.84259634,645.13,644.33,0.31039995]
[1739317161830,4.84259634,645.12,644.33,0.31039995]
[1739317162031,4.84259634,645.11,644.33,0.31039995]
[1739317162331,5.84449211,645.1,644.33,0.31039995]
[1739317162531,4.84259634,645.09,644.33,0.31039995]
[1739317162836,4.84259634,645.08,644.33,0.31039995]
[1739317163131,4.84259634,645.07,644.33,0.31039995]
[1739317163327,4.84259634,645.06,644.33,0.31039995]
[1739317163531,4.84259634,645.05,644.33,0.31039995]
[1739317163732,4.84259634,645.04,644.33,0.31039995]
[1739317163932,2.64976701,645.03,644.33,0.31039995]
[1739317164232,1.37051833,645.02,644.33,0.31039995]
[1739317164424,1.37051833,645.01,644.33,0.31039995]
[1739317164624,1.37051833,645.0,644.33,0.31039995]
[1739317164829,1.00189577,645.01,644.33,0.31039995]
[1739317165130,1.37069436,645.0,644.33,0.31039995]
[1739317165331,1.37069436,644.99,644.33,0.31039995]
[1739317165532,1.00189577,645.0,644.33,0.31039995]
[1739317165736,1.37077208,644.99,644.33,0.31039995]
[1739317165932,1.00189577,644.98,644.33,0.31039995]
[1739317166534,1.00189577,644.97,644.33,0.31039995]
[1739317167237,1.00189577,645.61,644.33,0.31039995]
[1739317167439,4.84355412,645.6,644.33,0.31039995]
[1739317167737,4.84355412,645.59,644.33,0.31039995]
[1739317167930,5.84544989,645.58,644.33,0.31039995]
[1739317168247,4.84368296,645.57,644.33,0.31039995]
[1739317168438,4.84368296,645.56,644.33,0.31039995]
[1739317168737,0.92164534,645.53,644.33,0.31039995]
[1739317168939,0.92164534,645.47,644.33,0.31039995]
[1739317169131,5.84557873,645.46,644.33,0.31039995]
[1739317169336,0.92164534,645.43,644.33,0.31039995]
[1739317169637,4.84368296,645.42,644.33,0.31039995]
[1739317169838,4.84368296,645.41,644.33,0.31039995]
[1739317170132,4.84368296,645.4,644.33,0.31039995]
[1739317170336,4.84368296,645.39,644.33,0.31039995]
[1739317170537,4.84368296,645.38,644.33,0.31039995]
[1739317170732,5.84557873,645.37,644.33,1.46604502]
[1739317170933,4.84368296,645.36,644.33,1.46604502]
[1739317171134,4.84368296,645.35,644.33,1.46604502]
[1739317171336,4.84368296,645.34,644.33,1.46604502]
[1739317171535,5.84557873,645.33,644.33,1.46604502]
[1739317171732,4.84368296,645.32,644.33,1.46604502]
[1739317171932,4.84368296,645.31,644.33,1.46604502]
[1739317172131,4.84368296,645.3,644.33,1.46604502]
[1739317172336,4.84368296,645.29,644.33,1.46604502]
[1739317172536,4.84368296,645.28,644.33,1.46604502]
[1739317172736,4.84368296,645.27,644.33,1.46604502]
[1739317172937,2.65031719,645.26,644.33,1.46604502]
[1739317173144,1.3708536,645.25,644.33,1.46604502]
[1739317173339,4.84792738,645.24,644.33,1.46604502]
[1739317173638,4.84792738,645.23,644.33,0.31039995]
[1739317173839,5.84982315,645.22,644.33,0.31039995]
[1739317174138,4.84792738,645.21,644.33,0.31039995]
[1739317174337,1.00189577,645.21,644.33,0.31039995]
[1739317174538,4.85140109,645.2,644.33,0.31039995]
[1739317174739,4.85140109,645.19,644.33,0.31039995]
[1739317174938,2.65456737,645.18,644.33,0.31039995]
[1739317175134,2.65494167,645.17,644.33,0.31039995]
[1739317175333,1.37301545,645.16,644.33,0.31039995]
[1739317175633,5.85466672,645.15,644.33,0.31039995]
[1739317175840,4.8527924,645.14,644.33,0.31039995]
[1739317176042,5.85468817,645.13,644.33,0.31039995]
[1739317176239,4.8527924,645.12,644.33,0.31039995]
[1739317176434,5.85468817,645.11,644.33,0.31039995]
[1739317176634,4.8527924,645.1,644.33,0.31039995]
[1739317176839,4.8527924,645.09,644.33,0.31039995]
[1739317177035,4.8527924,645.08,644.33,0.31039995]
[1739317177239,5.85468817,645.07,644.33,0.31039995]
[1739317177435,4.8527924,645.06,644.33,0.31039995]
[1739317177641,4.8527924,645.05,644.33,0.31039995]
[1739317177872,4.8527924,645.04,644.33,0.31039995]
[1739317178038,4.8527924,645.03,644.33,0.31039995]
[1739317178240,4.8527924,645.02,644.33,0.31039995]
[1739317178437,4.8527924,645.01,644.33,0.31039995]
[1739317178641,1.00189577,645.02,644.33,0.31039995]
[1739317178642,2.65693945,645.0,644.33,0.31039995]
[1739317178841,2.37491122,644.99,644.33,0.31039995]
[1739317179041,1.37301545,644.98,644.33,0.31039995]
[1739317179234,1.37301545,644.97,644.33,0.31039995]
[1739317179440,1.37301545,644.96,644.33,0.31039995]
[1739317179647,2.37491122,644.95,644.33,0.31039995]
[1739317179838,5.86183138,644.94,644.33,0.31039995]
[1739317180040,4.85993561,644.93,644.33,0.31039995]
[1739317180243,4.85993561,644.92,644.33,0.31039995]
[1739317180443,4.85993561,644.91,644.33,0.31039995]
[1739317180641,1.00189577,644.94,644.33,0.31039995]
[1739317180642,4.85993561,644.9,644.33,0.31039995]
[1739317180842,4.85993561,644.89,644.33,0.31039995]
[1739317181082,2.65773086,644.88,644.33,0.31039995]
[1739317181242,2.65773086,644.87,644.33,0.31039995]
[1739317181441,2.37491122,644.86,644.33,0.31039995]
[1739317181637,1.37301545,644.85,644.33,0.31039995]
[1739317181840,1.37301545,644.84,644.33,0.31039995]
[1739317182041,2.37491122,644.83,644.33,0.31039995]
[1739317182241,1.37301545,644.82,644.33,0.31039995]
[1739317182441,1.00189577,644.83,644.33,0.31039995]
[1739317182641,1.37752171,644.82,644.33,0.31039995]
[1739317182843,1.00189577,644.83,644.33,0.31039995]
[1739317183144,0.92611535,645.22,644.33,0.31039995]
[1739317183345,4.86713951,645.21,644.33,0.31039995]
[1739317183540,4.86713951,645.2,644.33,0.31039995]
[1739317183739,4.86713951,645.19,644.33,0.31039995]
[1739317183938,4.86713951,645.18,644.33,0.31039995]
[1739317184138,4.86713951,645.17,644.33,0.31039995]
[1739317184338,4.86713951,645.16,644.33,0.31039995]
[1739317184539,4.86713951,645.15,644.33,0.31039995]
[1739317184743,4.86705344,645.14,644.33,0.31039995]
[1739317184938,4.86705344,645.13,644.33,0.31039995]
[1739317185139,5.8743346,645.12,644.33,0.31039995]
[1739317185444,4.86705344,645.11,644.33,0.31039995]
[1739317185636,5.8743346,645.1,644.33,0.31039995]
[1739317185843,4.86705344,645.09,644.33,0.31039995]
[1739317186143,4.86705344,645.08,644.33,0.31039995]
[1739317186342,4.86676422,645.07,644.33,0.31039995]
[1739317186538,4.86676422,645.06,644.33,0.31039995]
[1739317186742,1.37745804,645.05,644.33,0.31039995]
[1739317186944,1.37745804,645.04,644.33,0.31039995]
[1739317187246,2.3847392,645.03,644.33,0.31039995]
[1739317187457,1.37745804,645.02,644.33,0.31039995]
[1739317187647,1.37745804,645.01,644.33,0.31039995]
[1739317187946,1.37745804,645.0,644.33,0.31039995]
[1739317188153,2.3847392,644.99,644.33,0.31039995]
[1739317188442,1.37745804,644.98,644.33,0.31039995]
[1739317188647,1.37745804,644.97,644.33,0.31039995]
[1739317188839,1.37745804,644.96,644.33,0.31039995]
[1739317189042,1.00728116,644.98,644.33,0.31039995]
[1739317189240,2.38449191,644.97,644.33,0.31039995]
[1739317189440,1.37721075,644.96,644.33,0.31039995]
[1739317189640,1.00728116,644.97,644.33,0.31039995]
[1739317189843,1.3772579,644.96,644.33,0.31039995]
[1739317190145,1.00728116,644.95,644.33,0.31039995]
[1739317191645,0.92581795,645.36,644.33,0.31039995]
[1739317191949,6.79849835,645.35,644.33,0.31039995]
[1739317192141,4.86571847,645.34,644.33,0.31039995]
[1739317192446,5.8726804,645.33,644.33,0.31039995]
[1739317192749,5.8726804,645.32,644.38,1.15564507]
[1739317192941,1.00696193,645.32,644.4,0.31036623]
[1739317193146,4.86553295,645.31,644.4,0.31036623]
[1739317193447,5.87249488,645.3,644.4,0.31036623]
[1739317193641,4.86553295,645.29,644.4,0.31036623]
[1739317193840,4.86553295,645.28,644.4,0.31036623]
[1739317194045,4.86553295,645.27,644.4,0.31036623]
[1739317194244,4.86553295,645.26,644.4,0.31036623]
[1739317194442,4.86553295,645.25,644.4,0.31036623]
[1739317194746,4.86553295,645.24,644.4,0.31036623]
[1739317195049,4.86553295,645.23,644.4,0.31036623]
[1739317195248,4.86553295,645.22,644.4,0.31036623]
[1739317195547,4.86553295,645.21,644.4,0.31036623]
[1739317195746,4.86553295,645.2,644.4,0.31036623]
[1739317195946,4.86553295,645.19,644.4,0.31036623]
[1739317196145,5.87249488,645.18,644.4,0.31036623]
[1739317196341,4.86553295,645.17,644.4,0.31036623]
[1739317196646,3.66924929,645.16,644.4,0.31036623]
[1739317196843,1.37702849,645.15,644.4,0.31036623]
[1739317197061,1.37702849,645.14,644.4,0.31036623]
[1739317197348,1.37702849,645.13,644.4,0.31036623]
[1739317197547,1.37702849,645.12,644.4,0.31036623]
[1739317197849,1.37702849,645.11,644.4,0.31036623]
[1739317198041,1.37702849,645.1,644.4,0.31036623]
[1739317198241,1.00696193,645.12,644.4,0.31036623]
[1739317198242,1.37702849,645.09,644.4,0.31036623]
[1739317198445,1.37702849,645.08,644.4,0.31036623]
[1739317198648,1.37702849,645.07,644.4,0.31036623]
[1739317198847,1.37702849,645.06,644.4,0.31036623]
[1739317199144,1.00696193,645.08,644.4,0.31036623]
[1739317199348,1.37710979,645.07,644.4,0.31036623]
[1739317199648,1.00696193,645.07,644.42,1.15564507]
[1739317199844,1.00696193,645.07,644.43,0.31035178]
[1739317200350,1.00696193,645.06,644.43,0.31035178]
[1739317200550,1.37715334,645.05,644.43,0.31035178]
[1739317200750,1.00696193,645.06,644.43,0.31035178]
[1739317201146,0.92578743,645.33,644.43,0.31035178]
[1739317201347,4.86592686,645.32,644.43,0.31035178]
[1739317201547,4.86592686,645.31,644.43,0.31035178]
[1739317201849,4.86592686,645.3,644.43,0.31035178]
[1739317202051,4.86592686,645.29,644.43,0.31035178]
[1739317202252,4.86592686,645.28,644.46,1.15564507]
[1739317202451,4.86592686,645.27,644.48,0.3103277]
[1739317202752,4.86592686,645.26,644.48,0.3103277]
[1739317202944,4.86592686,645.25,644.48,0.3103277]
[1739317203145,4.86592686,645.24,644.48,0.3103277]
[1739317203350,4.86592686,645.23,644.48,0.3103277]
[1739317203545,4.86592686,645.22,644.48,0.3103277]
[1739317203745,5.87296017,645.21,644.48,0.3103277]
[1739317203949,4.86592686,645.2,644.48,0.3103277]
[1739317204244,4.86592686,645.19,644.48,0.3103277]
[1739317204553,4.86592686,645.18,644.48,0.3103277]
[1739317204747,4.86781763,645.17,644.48,0.3103277]
[1739317204947,4.86781763,645.16,644.48,1.46597277]
[1739317205149,4.86781763,645.15,644.48,1.46597277]
[1739317205348,4.86781763,645.14,644.48,1.46597277]
[1739317205547,4.86781763,645.13,644.48,1.46597277]
[1739317205748,4.86781763,645.12,644.48,1.46597277]
[1739317205949,4.86781763,645.11,644.48,1.46597277]
[1739317206150,4.86781763,645.1,644.48,1.46597277]
[1739317206345,4.86781763,645.09,644.48,1.46597277]
[1739317206549,5.87485094,645.08,644.48,1.46597277]
[1739317206846,4.86865551,645.07,644.48,1.46597277]
[1739317207051,3.67105045,645.06,644.48,1.46597277]
[1739317207346,2.66401955,645.05,644.48,1.46597277]
[1739317207546,2.66403512,645.04,644.48,1.46597277]
[1739317207750,2.38493339,645.03,644.48,1.46597277]
[1739317207951,1.37790008,645.02,644.48,0.3103277]
[1739317208150,1.37790008,645.01,644.48,0.3103277]
[1739317208355,1.00703331,645.03,644.48,0.3103277]
[1739317208545,1.00703331,645.0,644.48,0.3103277]
[1739317209354,1.00703331,644.99,644.48,0.3103277]
[1739317209547,0.92635943,645.39,644.48,0.3103277]
[1739317209764,5.79458624,645.38,644.48,0.3103277]
[1739317210046,5.87568012,645.37,644.48,0.3103277]
[1739317210250,4.86822681,645.36,644.48,0.3103277]
[1739317210455,4.86822681,645.35,644.48,0.3103277]
[1739317210650,4.86822681,645.34,644.48,0.3103277]
[1739317210851,4.86822681,645.33,644.48,0.3103277]
[1739317211050,1.00745331,645.36,644.48,0.3103277]
[1739317211051,4.86822681,645.32,644.48,0.3103277]
[1739317211251,4.86822681,645.31,644.48,0.3103277]
[1739317211452,4.86822681,645.3,644.48,0.3103277]
[1739317211757,5.87568012,645.29,644.48,0.3103277]
[1739317211953,4.86822681,645.28,644.48,0.3103277]
[1739317212253,5.87568012,645.27,644.48,0.3103277]
[1739317212454,4.86822681,645.26,644.48,0.3103277]
[1739317212650,4.86822681,645.25,644.48,0.3103277]
[1739317212856,4.86822681,645.24,644.48,0.3103277]
[1739317213155,4.86822681,645.23,644.48,0.3103277]
[1739317213355,4.86822681,645.22,644.48,0.3103277]
[1739317213657,4.86822681,645.21,644.48,0.3103277]
[1739317213853,4.86822681,645.2,644.48,0.3103277]
[1739317214051,4.86822681,645.19,644.48,0.3103277]
[1739317214252,4.86822681,645.18,644.48,0.3103277]
[1739317214448,4.86822681,645.17,644.48,0.3103277]
[1739317214649,4.86822681,645.16,644.48,0.3103277]
[1739317214857,5.87568012,645.15,644.48,0.3103277]
[1739317215055,4.86822681,645.14,644.48,0.3103277]
[1739317215257,4.86822681,645.13,644.48,0.3103277]
[1739317215551,4.86822681,645.12,644.48,0.3103277]
[1739317215758,4.86779343,645.11,644.48,0.3103277]
[1739317215956,4.86779343,645.1,644.48,0.3103277]
[1739317216157,2.66360521,645.09,644.48,0.3103277]
[1739317216357,1.37761763,645.08,644.48,0.3103277]
[1739317216557,1.37761763,645.07,644.48,0.3103277]
[1739317216757,1.37761763,645.06,644.48,0.3103277]
[1739317216951,1.37761763,645.05,644.48,0.3103277]
[1739317217166,1.00745331,645.07,644.48,0.3103277]
[1739317217354,1.37754174,645.06,644.48,0.3103277]
[1739317217557,1.37754174,645.05,644.48,0.3103277]
[1739317217759,1.00745331,645.05,644.48,0.3103277]
[1739317218357,3.01092951,646.39,644.48,0.3103277]
[1739317218358,1.00745331,645.04,644.48,0.3103277]
[1739317219353,1.00745331,645.03,644.48,0.3103277]
[1739317219958,0.92611096,645.42,644.48,0.3103277]
[1739317220153,4.86726514,645.41,644.48,0.3103277]
[1739317220359,5.87452223,645.4,644.48,0.3103277]
[1739317220555,4.86726514,645.39,644.48,0.3103277]
[1739317220758,4.86726514,645.38,644.48,0.3103277]
[1739317221057,5.87452223,645.37,644.48,0.3103277]
[1739317221257,4.86726514,645.36,644.48,0.3103277]
[1739317221560,4.86721167,645.35,644.48,0.3103277]
[1739317221760,4.86721167,645.34,644.48,0.3103277]
[1739317221960,4.86721167,645.33,644.48,0.3103277]
[1739317222160,4.86721167,645.32,644.48,0.3103277]
[1739317222362,5.87446876,645.31,644.48,0.3103277]
[1739317222562,4.86721167,645.3,644.48,0.3103277]
[1739317222761,5.87446876,645.29,644.48,0.3103277]
[1739317222957,4.86721167,645.28,644.48,0.3103277]
[1739317223162,4.86721167,645.27,644.48,0.3103277]
[1739317223363,4.86721167,645.26,644.48,0.3103277]
[1739317223563,4.86736993,645.25,644.61,1.15564507]
[1739317223756,4.86736993,645.24,644.62,0.3102603]
[1739317224063,1.3775189,645.23,644.62,0.3102603]
[1739317224257,1.3775189,645.22,644.62,0.3102603]
[1739317224561,1.3775189,645.21,644.62,0.3102603]
[1739317224769,1.00725709,645.21,644.62,0.3102603]
[1739317225355,0.92596762,645.71,644.62,0.3102603]
[1739317225662,4.86520451,645.7,644.62,0.3102603]
[1739317225962,4.86520451,645.69,644.62,0.3102603]
[1739317226162,4.86520451,645.68,644.62,0.3102603]
[1739317226462,4.86520451,645.67,644.62,0.3102603]
[1739317226663,4.86520451,645.66,644.62,0.3102603]
[1739317226863,1.00680203,645.67,644.62,0.3102603]
[1739317226864,4.86520451,645.65,644.62,0.3102603]
[1739317227064,4.86520451,645.64,644.62,0.3102603]
[1739317227362,5.87200654,645.63,644.62,0.3102603]
[1739317227559,4.86520451,645.62,644.62,0.3102603]
[1739317227764,4.86520451,645.61,644.62,0.3102603]
[1739317227962,4.86520451,645.6,644.62,0.3102603]
[1739317228156,4.86520451,645.59,644.62,0.3102603]
[1739317228356,4.86520451,645.58,644.62,0.3102603]
[1739317228560,4.86520451,645.57,644.62,0.3102603]
[1739317228862,4.86520451,645.56,644.62,0.3102603]
[1739317229161,4.86520451,645.55,644.62,0.3102603]
[1739317229363,4.86520451,645.54,644.62,0.3102603]
[1739317229563,4.86520451,645.53,644.62,0.3102603]
[1739317229756,4.86088922,645.52,644.62,0.3102603]
[1739317229959,4.86088922,645.51,644.62,0.3102603]
[1739317230161,4.86088922,645.5,644.62,0.3102603]
[1739317230466,4.86088922,645.49,644.62,0.3102603]
[1739317230765,4.86088922,645.48,644.62,0.3102603]
[1739317230961,4.86088922,645.47,644.62,0.3102603]
[1739317231157,4.86088922,645.46,644.62,0.3102603]
[1739317231365,4.86088922,645.45,644.62,0.3102603]
[1739317231664,3.57596419,645.44,644.62,0.3102603]
[1739317231864,2.65915771,645.43,644.62,0.3102603]
[1739317232061,1.37573576,645.42,644.62,0.3102603]
[1739317232360,1.37508201,645.41,644.62,0.3102603]
[1739317232564,1.37508201,645.4,644.62,0.3102603]
[1739317232758,1.37508201,645.39,644.62,0.3102603]
[1739317232965,1.37508201,645.38,644.62,0.3102603]
[1739317233263,1.37508201,645.37,644.62,0.3102603]
[1739317233463,1.37508201,645.36,644.62,0.3102603]
[1739317233763,1.37508201,645.35,644.62,0.3102603]
[1739317233965,1.37468606,645.34,644.62,0.3102603]
[1739317234161,1.00680203,645.33,644.62,0.3102603]
[1739317234763,1.00680203,645.32,644.62,0.3102603]
[1739317235166,0.92405527,645.6,644.62,0.3102603]
[1739317235465,4.85590676,645.59,644.62,0.3102603]
[1739317235661,4.85590676,645.58,644.62,0.3102603]
[1739317235865,4.85590676,645.57,644.62,0.3102603]
[1739317236062,4.85590676,645.56,644.62,0.3102603]
[1739317236260,4.85590676,645.55,644.62,0.3102603]
[1739317236463,3.57324091,645.54,644.62,0.3102603]
[1739317236660,1.37432343,645.53,644.62,0.3102603]
[1739317236861,2.37919673,645.52,644.62,0.3102603]
[1739317237066,1.37432343,645.51,644.62,0.3102603]
[1739317237265,1.37432343,645.5,644.62,0.3102603]
[1739317237465,1.37432343,645.49,644.65,1.15564507]
[1739317237665,1.37432343,645.48,644.67,0.31023624]
[1739317237866,1.37432343,645.47,644.67,0.31023624]
[1739317238066,1.37386705,645.46,644.67,0.31023624]
[1739317238367,1.0048733,645.45,644.67,0.31023624]
[1739317239167,1.0048733,645.44,644.67,0.31023624]
[1739317239468,0.92345651,645.74,644.67,0.31023624]
[1739317239667,3.57117429,645.73,644.67,0.31023624]
[1739317239868,3.57117429,645.72,644.67,0.31023624]
[1739317240163,3.57117429,645.71,644.67,0.31023624]
[1739317240366,3.57117429,645.7,644.67,0.31023624]
[1739317240569,3.57134022,645.69,644.67,0.31023624]
[1739317240770,3.57134022,645.68,644.67,0.31023624]
[1739317241068,3.57134022,645.67,644.67,0.31023624]
[1739317241271,3.57134022,645.66,644.67,0.31023624]
[1739317241467,3.57134022,645.65,644.67,0.31023624]
[1739317241670,3.57134022,645.64,644.67,0.31023624]
[1739317241869,3.57134022,645.63,644.67,0.31023624]
[1739317242065,3.57134022,645.62,644.67,0.31023624]
[1739317242268,4.5755868,645.61,644.67,0.31023624]
[1739317242465,3.57134022,645.6,644.67,0.31023624]
[1739317242665,4.5755868,645.59,644.67,0.31023624]
[1739317242871,3.57134022,645.58,644.67,0.31023624]
[1739317243064,3.57134022,645.57,644.67,0.31023624]
[1739317243268,3.57134022,645.56,644.67,0.31023624]
[1739317243468,3.57134022,645.55,644.67,0.31023624]
[1739317243768,3.57134022,645.54,644.67,0.31023624]
[1739317243968,4.5755868,645.53,644.67,0.31023624]
[1739317244169,3.57134022,645.52,644.67,0.31023624]
[1739317244470,3.57134022,645.51,644.67,0.31023624]
[1739317244670,3.57134022,645.5,644.67,0.31023624]
[1739317244866,3.57134022,645.49,644.67,0.31023624]
[1739317245067,3.57134022,645.48,644.67,0.31023624]
[1739317245266,3.57134022,645.47,644.67,0.31023624]
[1739317245467,4.85414698,645.46,644.67,0.31023624]
[1739317245670,4.85414698,645.45,644.67,0.31023624]
[1739317245868,4.85414698,645.44,644.67,0.31023624]
[1739317246211,4.85414698,645.43,644.67,0.31023624]
[1739317246474,5.85839356,645.42,644.67,0.31023624]
[1739317246673,5.77741552,645.41,644.67,0.31023624]
[1739317246875,4.85414698,645.4,644.67,0.31023624]
[1739317247067,4.85414698,645.39,644.67,0.31023624]
[1739317247270,4.85414698,645.38,644.67,0.31023624]
[1739317247470,2.65639915,645.37,644.67,0.31023624]
[1739317247667,2.37783897,645.36,644.67,0.31023624]
[1739317247873,1.37359239,645.35,644.67,0.31023624]